[Event "*** MasterClass Titled Tuesday Blitz"]
[Site "Chess.com"]
[Date "2017.10.03"]
[Round "1"]
[White "Noukii"]
[Black "Tibmat"]
[Result "1-0"]
[WhiteElo "2703"]
[BlackElo "2396"]
[TimeControl "180+2"]
[EndTime "13:09:28 PDT"]
[Termination "Noukii won on time"]

1. d4 {[%clk 0:03:01.9]} 1... Nf6 {[%clk 0:02:47.6]} 2. Nf3 {[%clk 0:03:02.4]}
2... b6 {[%clk 0:02:48.8]} 3. Bg5 {[%clk 0:03:02.1]} 3... Ne4 {[%clk 0:02:48.4]}
4. Bf4 {[%clk 0:03:02.8]} 4... Bb7 {[%clk 0:02:48.4]} 5. e3 {[%clk 0:03:02.6]}
5... e6 {[%clk 0:02:45]} 6. Nbd2 {[%clk 0:03:04]} 6... Nxd2 {[%clk 0:02:40.6]}
7. Qxd2 {[%clk 0:03:04.8]} 7... c5 {[%clk 0:02:42.1]} 8. c3 {[%clk 0:02:59.5]}
8... Be7 {[%clk 0:02:40.7]} 9. Be2 {[%clk 0:02:53.6]} 9... O-O {[%clk
0:02:25.7]} 10. O-O {[%clk 0:02:54.5]} 10... d6 {[%clk 0:02:14.3]} 11. Rfd1
{[%clk 0:02:54.4]} 11... cxd4 {[%clk 0:02:04.6]} 12. exd4 {[%clk 0:02:49.1]}
12... Nd7 {[%clk 0:02:05]} 13. a4 {[%clk 0:02:49.7]} 13... a6 {[%clk 0:02:05.3]}
14. Re1 {[%clk 0:02:47.5]} 14... Rc8 {[%clk 0:02:04.2]} 15. Qd3 {[%clk
0:02:27.8]} 15... Re8 {[%clk 0:02:03.2]} 16. Bg3 {[%clk 0:02:26.8]} 16... Rc7
{[%clk 0:02:01.3]} 17. Nd2 {[%clk 0:02:27.6]} 17... Nf6 {[%clk 0:01:49.5]} 18.
Bf3 {[%clk 0:02:28]} 18... Qa8 {[%clk 0:01:49.4]} 19. Bxb7 {[%clk 0:02:27.5]}
19... Qxb7 {[%clk 0:01:51.3]} 20. Nc4 {[%clk 0:02:27.7]} 20... Rd8 {[%clk
0:01:48.2]} 21. Ne3 {[%clk 0:02:28.4]} 21... b5 {[%clk 0:01:36.7]} 22. axb5
{[%clk 0:02:25.4]} 22... axb5 {[%clk 0:01:38.6]} 23. Rad1 {[%clk 0:02:21.5]}
23... Rdc8 {[%clk 0:01:30.8]} 24. d5 {[%clk 0:02:19.7]} 24... e5 {[%clk
0:01:15.9]} 25. Nf5 {[%clk 0:02:20.2]} 25... Bf8 {[%clk 0:01:17]} 26. Bh4 {[%clk
0:02:20.3]} 26... Nd7 {[%clk 0:01:14.2]} 27. Qg3 {[%clk 0:02:17.8]} 27... g6
{[%clk 0:01:05]} 28. Ne7+ {[%clk 0:02:06.1]} 28... Bxe7 {[%clk 0:00:59.9]} 29.
Bxe7 {[%clk 0:02:08]} 29... Qb6 {[%clk 0:00:58.5]} 30. h4 {[%clk 0:02:05.5]}
30... b4 {[%clk 0:00:57.8]} 31. cxb4 {[%clk 0:02:05.7]} 31... Qxb4 {[%clk
0:00:59.7]} 32. h5 {[%clk 0:02:01]} 32... Nf8 {[%clk 0:00:52.6]} 33. Bg5 {[%clk
0:01:50.7]} 33... Qxb2 {[%clk 0:00:49.8]} 34. f4 {[%clk 0:01:50.7]} 34... exf4
{[%clk 0:00:40.5]} 35. Bxf4 {[%clk 0:01:50.5]} 35... Rc3 {[%clk 0:00:34.2]} 36.
Qh4 {[%clk 0:01:44.7]} 36... Qb6+ {[%clk 0:00:35.2]} 37. Kh2 {[%clk 0:01:39.8]}
37... R3c4 {[%clk 0:00:36.6]} 38. Qg3 {[%clk 0:01:38]} 38... Rc3 {[%clk
0:00:35.4]} 39. Qg5 {[%clk 0:01:38.4]} 39... Qd8 {[%clk 0:00:35.3]} 40. Qg4
{[%clk 0:01:34.9]} 40... R3c4 {[%clk 0:00:34.6]} 41. Qg3 {[%clk 0:01:34.7]}
41... Rc3 {[%clk 0:00:35.3]} 42. Re3 {[%clk 0:01:35.3]} 42... Rxe3 {[%clk
0:00:35.6]} 43. Bxe3 {[%clk 0:01:37.2]} 43... Rc3 {[%clk 0:00:35.8]} 44. Qf4
{[%clk 0:01:35.9]} 44... Qe7 {[%clk 0:00:34.2]} 45. Bd4 {[%clk 0:01:34.9]} 45...
Rc4 {[%clk 0:00:34.8]} 46. h6 {[%clk 0:01:32.1]} 46... Nd7 {[%clk 0:00:35]} 47.
Rb1 {[%clk 0:01:29.7]} 47... f5 {[%clk 0:00:30.1]} 48. Rb7 {[%clk 0:01:27.1]}
48... Qe8 {[%clk 0:00:18.8]} 49. Ra7 {[%clk 0:01:05.6]} 49... Ne5 {[%clk
0:00:19.3]} 50. Rg7+ {[%clk 0:01:05]} 50... Kh8 {[%clk 0:00:20.1]} 51. Kh3
{[%clk 0:01:01.9]} 51... Qa4 {[%clk 0:00:17.6]} 52. Re7 {[%clk 0:00:52.1]} 52...
Kg8 {[%clk 0:00:11.9]} 53. Rg7+ {[%clk 0:00:47.7]} 53... Kh8 {[%clk 0:00:12.9]}
54. Qg5 {[%clk 0:00:48.2]} 54... Qb3+ {[%clk 0:00:09.2]} 55. g3 {[%clk
0:00:48.2]} 55... Qb8 {[%clk 0:00:04.6]} 56. Qf6 {[%clk 0:00:49.2]} 1-0

[Event "*** MasterClass Titled Tuesday Blitz"]
[Site "Chess.com"]
[Date "2017.10.03"]
[Round "1"]
[White "Alexander_Moskalenko"]
[Black "PrinceMurad09"]
[Result "1-0"]
[WhiteElo "2626"]
[BlackElo "2330"]
[TimeControl "180+2"]
[EndTime "13:09:30 PDT"]
[Termination "Alexander_Moskalenko won by resignation"]

1. e4 {[%clk 0:02:54.5]} 1... c5 {[%clk 0:02:59.9]} 2. Nf3 {[%clk 0:02:50]} 2...
d6 {[%clk 0:03:01]} 3. d4 {[%clk 0:02:50.5]} 3... cxd4 {[%clk 0:03:02.4]} 4.
Nxd4 {[%clk 0:02:52.4]} 4... Nf6 {[%clk 0:03:03.6]} 5. Nc3 {[%clk 0:02:54]} 5...
g6 {[%clk 0:03:04.2]} 6. Be2 {[%clk 0:02:52.2]} 6... Bg7 {[%clk 0:03:05.6]} 7.
O-O {[%clk 0:02:36.9]} 7... O-O {[%clk 0:03:06.1]} 8. Re1 {[%clk 0:02:36.7]}
8... Nc6 {[%clk 0:03:06.9]} 9. Nb3 {[%clk 0:02:37.8]} 9... Be6 {[%clk
0:03:05.3]} 10. Bf1 {[%clk 0:02:38]} 10... d5 {[%clk 0:03:05.8]} 11. exd5 {[%clk
0:02:35.3]} 11... Nxd5 {[%clk 0:03:05.9]} 12. Nxd5 {[%clk 0:02:36.8]} 12... Qxd5
{[%clk 0:03:04.2]} 13. c3 {[%clk 0:02:38.7]} 13... Qxd1 {[%clk 0:03:03.2]} 14.
Rxd1 {[%clk 0:02:38]} 14... b6 {[%clk 0:03:02.7]} 15. Bb5 {[%clk 0:02:25.8]}
15... Ne5 {[%clk 0:02:54]} 16. Bg5 {[%clk 0:02:26]} 16... f6 {[%clk 0:02:47.5]}
17. Bf4 {[%clk 0:01:59.2]} 17... Nc4 {[%clk 0:02:33.7]} 18. Re1 {[%clk
0:01:53.5]} 18... Bf7 {[%clk 0:02:17.6]} 19. Rxe7 {[%clk 0:01:38.9]} 19... Nxb2
{[%clk 0:02:15.8]} 20. Rb1 {[%clk 0:01:39.4]} 20... a6 {[%clk 0:02:12]} 21. Bc6
{[%clk 0:01:32.8]} 21... Rad8 {[%clk 0:01:56.4]} 22. Bc7 {[%clk 0:01:05.8]}
22... Rd1+ {[%clk 0:01:52.3]} 23. Rxd1 {[%clk 0:01:03.7]} 23... Nxd1 {[%clk
0:01:54.2]} 24. Nd4 {[%clk 0:00:43.1]} 24... Nxc3 {[%clk 0:01:46.2]} 25. Ne6
{[%clk 0:00:43.7]} 25... Bxe6 {[%clk 0:01:38.6]} 26. Rxe6 {[%clk 0:00:45.6]}
26... Rc8 {[%clk 0:01:37]} 27. Bxb6 {[%clk 0:00:34.2]} 27... Ne2+ {[%clk
0:01:34.9]} 28. Kf1 {[%clk 0:00:32.4]} 28... Nf4 {[%clk 0:01:35.6]} 29. Re8+
{[%clk 0:00:33.9]} 29... Rxe8 {[%clk 0:01:35]} 30. Bxe8 {[%clk 0:00:35.8]} 30...
Bf8 {[%clk 0:01:25.7]} 31. Bc6 {[%clk 0:00:32.9]} 31... Bb4 {[%clk 0:01:23.6]}
32. g3 {[%clk 0:00:32.5]} 32... Ne6 {[%clk 0:01:23.3]} 33. Bd5 {[%clk
0:00:33.1]} 33... Kf7 {[%clk 0:01:24.1]} 34. Bc4 {[%clk 0:00:30.9]} 34... a5
{[%clk 0:01:24.2]} 35. Bd8 {[%clk 0:00:30.6]} 35... f5 {[%clk 0:01:19.9]} 36.
Ke2 {[%clk 0:00:27.6]} 36... Ke8 {[%clk 0:01:20.8]} 37. Bxa5 {[%clk 0:00:26.6]}
37... Bxa5 {[%clk 0:01:21.1]} 38. Bxe6 {[%clk 0:00:28.1]} 38... Ke7 {[%clk
0:01:21.9]} 39. Bg8 {[%clk 0:00:27.9]} 39... h6 {[%clk 0:01:23.1]} 40. a4 {[%clk
0:00:27.4]} 40... g5 {[%clk 0:01:21.3]} 41. Bh7 {[%clk 0:00:27]} 41... Ke6
{[%clk 0:01:17.5]} 42. f3 {[%clk 0:00:26.3]} 42... Ke5 {[%clk 0:01:14.3]} 43.
Kd3 {[%clk 0:00:27]} 43... f4 {[%clk 0:01:12.6]} 44. g4 {[%clk 0:00:27.8]} 44...
Kd5 {[%clk 0:01:13]} 45. Bg8+ {[%clk 0:00:28.3]} 45... Kc5 {[%clk 0:01:11.8]}
46. Bf7 {[%clk 0:00:28.5]} 46... Kb4 {[%clk 0:01:05.6]} 47. Be8 {[%clk
0:00:29.3]} 47... Kb3 {[%clk 0:01:03.4]} 48. Ke4 {[%clk 0:00:30.6]} 48... Kc3
{[%clk 0:01:00.6]} 49. Kf5 {[%clk 0:00:31.8]} 49... Bb4 {[%clk 0:01:02]} 50. Kg6
{[%clk 0:00:31.3]} 50... Bf8 {[%clk 0:01:02.7]} 51. a5 {[%clk 0:00:25.3]} 51...
Kd3 {[%clk 0:00:24.9]} 52. a6 {[%clk 0:00:25.5]} 52... Bc5 {[%clk 0:00:26.5]}
53. Kxh6 {[%clk 0:00:25.9]} 53... Ke3 {[%clk 0:00:27.5]} 54. Bc6 {[%clk
0:00:26.9]} 54... Kf2 {[%clk 0:00:28.9]} 55. Kxg5 {[%clk 0:00:28.3]} 55... Be3
{[%clk 0:00:29.7]} 56. h4 {[%clk 0:00:28.6]} 1-0

[Event "*** MasterClass Titled Tuesday Blitz"]
[Site "Chess.com"]
[Date "2017.10.03"]
[Round "1"]
[White "cheese111"]
[Black "VladDobrov"]
[Result "0-1"]
[WhiteElo "2329"]
[BlackElo "2631"]
[TimeControl "180+2"]
[EndTime "13:09:33 PDT"]
[Termination "VladDobrov won by resignation"]

1. e4 {[%clk 0:03:01.9]} 1... c5 {[%clk 0:03:00.4]} 2. Nf3 {[%clk 0:03:00.8]}
2... d6 {[%clk 0:03:01.6]} 3. d4 {[%clk 0:03:01.6]} 3... cxd4 {[%clk 0:03:02.9]}
4. Nxd4 {[%clk 0:03:03.5]} 4... Nf6 {[%clk 0:03:03.9]} 5. Nc3 {[%clk 0:03:04.4]}
5... a6 {[%clk 0:03:05.4]} 6. Be3 {[%clk 0:03:05.7]} 6... e5 {[%clk 0:03:05.3]}
7. Nb3 {[%clk 0:03:07]} 7... Be6 {[%clk 0:03:06.1]} 8. h3 {[%clk 0:03:08.1]}
8... Be7 {[%clk 0:02:59]} 9. f4 {[%clk 0:03:08.3]} 9... exf4 {[%clk 0:02:56.7]}
10. Bxf4 {[%clk 0:03:10.2]} 10... Nc6 {[%clk 0:02:57.8]} 11. Qe2 {[%clk
0:03:10.2]} 11... Ne5 {[%clk 0:02:43.8]} 12. O-O-O {[%clk 0:03:10.3]} 12... Qc7
{[%clk 0:02:39.7]} 13. g4 {[%clk 0:03:06.5]} 13... O-O {[%clk 0:02:37.1]} 14.
Nd4 {[%clk 0:02:59.4]} 14... b5 {[%clk 0:02:34.5]} 15. g5 {[%clk 0:02:59.1]}
15... Nfd7 {[%clk 0:02:34.5]} 16. Nf5 {[%clk 0:02:59.7]} 16... Nb6 {[%clk
0:02:28.3]} 17. Nxe7+ {[%clk 0:02:36.3]} 17... Qxe7 {[%clk 0:02:28.2]} 18. Qf2
{[%clk 0:02:25]} 18... Nbc4 {[%clk 0:02:15.4]} 19. Nd5 {[%clk 0:02:19.6]} 19...
Bxd5 {[%clk 0:02:13.8]} 20. exd5 {[%clk 0:02:20.4]} 20... f6 {[%clk 0:02:06.9]}
21. Qg3 {[%clk 0:02:17.7]} 21... Rac8 {[%clk 0:02:06]} 22. Rh2 {[%clk
0:02:01.8]} 22... fxg5 {[%clk 0:02:03]} 23. Bxg5 {[%clk 0:02:01.7]} 23... Qf7
{[%clk 0:02:03.1]} 24. Bxc4 {[%clk 0:01:21.3]} 24... Rxc4 {[%clk 0:01:56.7]} 25.
Rg2 {[%clk 0:00:58.2]} 25... Qg6 {[%clk 0:01:47.6]} 26. Kb1 {[%clk 0:00:43.9]}
26... h6 {[%clk 0:01:25.8]} 27. Be7 {[%clk 0:00:29.5]} 27... Qxg3 {[%clk
0:00:59.2]} 28. Rxg3 {[%clk 0:00:31.4]} 28... Rf2 {[%clk 0:01:00]} 29. Bxd6
{[%clk 0:00:31.4]} 29... Nf7 {[%clk 0:01:01]} 30. Be7 {[%clk 0:00:14.4]} 30...
Rcxc2 {[%clk 0:01:00.9]} 31. Bf6 {[%clk 0:00:15.4]} 31... g5 {[%clk 0:00:59.8]}
32. d6 {[%clk 0:00:16.6]} 32... Rcd2 {[%clk 0:00:59.3]} 33. Rxd2 {[%clk
0:00:14.3]} 33... Rxd2 {[%clk 0:01:01.2]} 34. Be7 {[%clk 0:00:15.2]} 34... Nxd6
{[%clk 0:01:01.4]} 35. Kc1 {[%clk 0:00:12.6]} 35... Rd5 {[%clk 0:01:00.7]} 36.
Re3 {[%clk 0:00:06.2]} 36... Nf5 {[%clk 0:01:01.4]} 37. Re2 {[%clk 0:00:07.6]}
37... Kf7 {[%clk 0:01:02.1]} 38. Bb4 {[%clk 0:00:07.5]} 38... Rd4 {[%clk
0:01:02]} 39. Bc3 {[%clk 0:00:08.3]} 39... Rh4 {[%clk 0:01:01.3]} 40. Rf2 {[%clk
0:00:07.4]} 40... Ke6 {[%clk 0:00:59.8]} 41. Rf3 {[%clk 0:00:08.8]} 41... h5
{[%clk 0:00:59.3]} 42. Kd2 {[%clk 0:00:08.6]} 42... g4 {[%clk 0:00:59.5]} 43.
hxg4 {[%clk 0:00:10.5]} 43... hxg4 {[%clk 0:01:01.3]} 44. Rf4 {[%clk 0:00:12]}
44... Rh2+ {[%clk 0:01:02.3]} 45. Kd3 {[%clk 0:00:13.6]} 45... g3 {[%clk
0:01:03.7]} 46. Re4+ {[%clk 0:00:14.9]} 46... Kd6 {[%clk 0:01:04.5]} 47. a4
{[%clk 0:00:13.2]} 47... Rh3 {[%clk 0:01:02.3]} 48. Rg4 {[%clk 0:00:11.7]} 48...
g2+ {[%clk 0:00:59.9]} 49. Ke2 {[%clk 0:00:12.2]} 49... Rg3 {[%clk 0:00:53.8]}
50. Rxg3 {[%clk 0:00:04.2]} 50... Nxg3+ {[%clk 0:00:55.7]} 51. Kf2 {[%clk
0:00:05.6]} 51... Ne4+ {[%clk 0:00:56.9]} 52. Kxg2 {[%clk 0:00:07.4]} 52... Nxc3
{[%clk 0:00:58.6]} 53. axb5 {[%clk 0:00:06.1]} 53... Nxb5 {[%clk 0:00:58.6]} 54.
Kf3 {[%clk 0:00:07]} 54... Kc5 {[%clk 0:01:00.5]} 55. Ke2 {[%clk 0:00:08.9]}
55... Kb4 {[%clk 0:01:02.2]} 56. Kd2 {[%clk 0:00:10.8]} 56... Kb3 {[%clk
0:01:03.7]} 57. Kc1 {[%clk 0:00:12.7]} 57... Nd4 {[%clk 0:01:04.4]} 58. Kb1
{[%clk 0:00:13.9]} 58... a5 {[%clk 0:01:05.9]} 59. Ka1 {[%clk 0:00:14.8]} 59...
a4 {[%clk 0:01:07.3]} 60. Kb1 {[%clk 0:00:16]} 60... Nc2 {[%clk 0:01:08.2]} 61.
Kc1 {[%clk 0:00:16.6]} 61... Nb4 {[%clk 0:01:10.1]} 62. Kb1 {[%clk 0:00:17.9]}
62... Nd3 {[%clk 0:01:11.1]} 63. Ka1 {[%clk 0:00:19.2]} 63... Nxb2 {[%clk
0:01:12.2]} 64. Kb1 {[%clk 0:00:20.9]} 64... Nc4 {[%clk 0:01:13.8]} 65. Ka1
{[%clk 0:00:22.1]} 65... Ne3 {[%clk 0:01:13.1]} 66. Kb1 {[%clk 0:00:23.2]} 66...
a3 {[%clk 0:01:14.4]} 67. Ka1 {[%clk 0:00:24]} 67... Nc2+ {[%clk 0:01:15.9]} 0-1

[Event "*** MasterClass Titled Tuesday Blitz"]
[Site "Chess.com"]
[Date "2017.10.03"]
[Round "1"]
[White "Tonychess32"]
[Black "igorkovalenko"]
[Result "0-1"]
[WhiteElo "2406"]
[BlackElo "2738"]
[TimeControl "180+2"]
[EndTime "13:09:34 PDT"]
[Termination "igorkovalenko won on time"]

1. e4 {[%clk 0:03:01.9]} 1... c5 {[%clk 0:03:01.4]} 2. Nf3 {[%clk 0:03:02.7]}
2... d6 {[%clk 0:03:02.6]} 3. c3 {[%clk 0:03:03.6]} 3... Nf6 {[%clk 0:03:03.1]}
4. Be2 {[%clk 0:03:04.6]} 4... g6 {[%clk 0:03:02.5]} 5. O-O {[%clk 0:03:05.3]}
5... Bg7 {[%clk 0:03:04.1]} 6. Qc2 {[%clk 0:03:06]} 6... O-O {[%clk 0:03:05.5]}
7. d3 {[%clk 0:03:06.9]} 7... Nc6 {[%clk 0:03:06.6]} 8. h3 {[%clk 0:03:07.4]}
8... e5 {[%clk 0:03:07.7]} 9. a4 {[%clk 0:03:05.4]} 9... h6 {[%clk 0:03:07.9]}
10. Na3 {[%clk 0:03:05.9]} 10... d5 {[%clk 0:03:09.3]} 11. Re1 {[%clk
0:03:02.8]} 11... Re8 {[%clk 0:03:09.7]} 12. Bf1 {[%clk 0:03:03.4]} 12... Be6
{[%clk 0:03:09.8]} 13. Be3 {[%clk 0:02:43.9]} 13... d4 {[%clk 0:03:10.3]} 14.
Bd2 {[%clk 0:02:37.1]} 14... Rc8 {[%clk 0:03:10]} 15. c4 {[%clk 0:02:37.7]}
15... Qe7 {[%clk 0:03:06.8]} 16. Qd1 {[%clk 0:02:31.4]} 16... Nd7 {[%clk
0:03:04.4]} 17. g4 {[%clk 0:02:27.8]} 17... Nf8 {[%clk 0:03:01.5]} 18. Bg2
{[%clk 0:02:28.8]} 18... Bd7 {[%clk 0:03:02.7]} 19. Nc2 {[%clk 0:02:21.3]} 19...
Ne6 {[%clk 0:03:03.4]} 20. Rf1 {[%clk 0:02:17.5]} 20... Kh7 {[%clk 0:03:02.6]}
21. Rb1 {[%clk 0:02:14.6]} 21... a5 {[%clk 0:03:02.8]} 22. b3 {[%clk 0:02:13.4]}
22... Rh8 {[%clk 0:03:03]} 23. Nh2 {[%clk 0:02:12]} 23... Kg8 {[%clk 0:03:02.4]}
24. Qc1 {[%clk 0:02:06.9]} 24... h5 {[%clk 0:02:59.7]} 25. g5 {[%clk 0:02:07.8]}
25... h4 {[%clk 0:02:55.7]} 26. Ne1 {[%clk 0:02:03.6]} 26... Rh5 {[%clk
0:02:53.5]} 27. Bf3 {[%clk 0:02:02.5]} 27... Rxg5+ {[%clk 0:02:54.1]} 28. Bxg5
{[%clk 0:02:02.7]} 28... Nxg5 {[%clk 0:02:56]} 29. Bg2 {[%clk 0:01:35.2]} 29...
Nxh3+ {[%clk 0:02:56.7]} 30. Kh1 {[%clk 0:01:35.9]} 30... Nf4 {[%clk 0:02:57.5]}
31. Bf3 {[%clk 0:01:32.7]} 31... Nb4 {[%clk 0:02:57.9]} 32. Rg1 {[%clk 0:01:18]}
32... Rc6 {[%clk 0:02:49.9]} 33. Qd1 {[%clk 0:01:18.6]} 33... Bh6 {[%clk
0:02:48.6]} 34. Rb2 {[%clk 0:01:18.2]} 34... Kh7 {[%clk 0:02:43.9]} 35. Bg4
{[%clk 0:01:19.1]} 35... Be8 {[%clk 0:02:44.2]} 36. Be2 {[%clk 0:01:09]} 36...
Rb6 {[%clk 0:02:34.5]} 37. Ng2 {[%clk 0:01:08.4]} 37... Nxg2 {[%clk 0:02:33.2]}
38. Rxg2 {[%clk 0:01:09]} 38... Bf4 {[%clk 0:02:34.6]} 39. Bg4 {[%clk
0:01:08.1]} 39... Bxh2 {[%clk 0:02:23]} 40. Rxh2 {[%clk 0:01:07]} 40... Kg7
{[%clk 0:02:20.8]} 41. Rh3 {[%clk 0:00:56.6]} 41... g5 {[%clk 0:02:21.3]} 42. f3
{[%clk 0:00:54.4]} 42... Rh6 {[%clk 0:02:20.3]} 43. Rg2 {[%clk 0:00:55.3]} 43...
f6 {[%clk 0:02:20.6]} 44. Bf5 {[%clk 0:00:54.8]} 44... Bd7 {[%clk 0:02:21.4]}
45. Kg1 {[%clk 0:00:52.1]} 45... Bxf5 {[%clk 0:02:21.9]} 46. exf5 {[%clk
0:00:52.8]} 46... Qd7 {[%clk 0:02:23.7]} 47. f4 {[%clk 0:00:47.2]} 47... exf4
{[%clk 0:02:22.5]} 48. Qg4 {[%clk 0:00:46]} 48... Rh8 {[%clk 0:02:08.7]} 49. Re2
{[%clk 0:00:29.2]} 49... Nc6 {[%clk 0:02:09.4]} 50. Re6 {[%clk 0:00:28.2]} 50...
Nd8 {[%clk 0:02:09.7]} 51. Re2 {[%clk 0:00:22.3]} 51... Nf7 {[%clk 0:02:10.8]}
52. Re6 {[%clk 0:00:23]} 52... Nh6 {[%clk 0:02:03.1]} 53. Qe2 {[%clk 0:00:16.7]}
53... Nxf5 {[%clk 0:02:04.1]} 54. Qe4 {[%clk 0:00:13.1]} 54... Kf7 {[%clk
0:02:00.3]} 55. Rb6 {[%clk 0:00:12.1]} 55... Re8 {[%clk 0:02:00.5]} 56. Qg2
{[%clk 0:00:12]} 56... Re1+ {[%clk 0:01:59.3]} 57. Kh2 {[%clk 0:00:13.3]} 57...
Re7 {[%clk 0:02:01.2]} 58. Rf3 {[%clk 0:00:11.3]} 58... Ne3 {[%clk 0:02:01.6]}
59. Qg1 {[%clk 0:00:12.2]} 59... Qc7 {[%clk 0:02:01.2]} 60. Rb5 {[%clk
0:00:12.9]} 60... b6 {[%clk 0:02:02.6]} 61. Rf2 {[%clk 0:00:13.8]} 61... f3+
{[%clk 0:02:02.3]} 62. Kh1 {[%clk 0:00:14.7]} 62... g4 {[%clk 0:02:03.9]} 63.
Rh2 {[%clk 0:00:15.1]} 63... h3 {[%clk 0:02:04.7]} 64. Qf2 {[%clk 0:00:14.6]}
64... Kg6 {[%clk 0:02:05.9]} 65. Qh4 {[%clk 0:00:15.5]} 65... Rh7 {[%clk
0:02:07]} 66. Qe1 {[%clk 0:00:16.3]} 66... f5 {[%clk 0:02:08.4]} 67. Rf2 {[%clk
0:00:16.8]} 67... Qc6 {[%clk 0:02:08.8]} 68. Qg1 {[%clk 0:00:16.4]} 68... f4
{[%clk 0:02:09.8]} 69. Kh2 {[%clk 0:00:16.6]} 69... g3+ {[%clk 0:02:10]} 70. Kh1
{[%clk 0:00:17.9]} 70... h2 {[%clk 0:02:10.5]} 71. Qf1 {[%clk 0:00:17.6]} 71...
g2+ {[%clk 0:02:11.8]} 0-1

[Event "*** MasterClass Titled Tuesday Blitz"]
[Site "Chess.com"]
[Date "2017.10.03"]
[Round "1"]
[White "2L8IWUN"]
[Black "TomsKantans"]
[Result "1/2-1/2"]
[WhiteElo "1802"]
[BlackElo "2409"]
[TimeControl "180+2"]
[EndTime "13:09:35 PDT"]
[Termination "Game drawn by agreement"]

1. d4 {[%clk 0:03:01.6]} 1... Nf6 {[%clk 0:02:51.2]} 2. Bf4 {[%clk 0:02:58.9]}
2... g6 {[%clk 0:02:47.7]} 3. Nc3 {[%clk 0:02:59.6]} 3... d5 {[%clk 0:02:48]} 4.
e3 {[%clk 0:03:00.4]} 4... Bg7 {[%clk 0:02:48.7]} 5. h4 {[%clk 0:03:01.5]} 5...
h6 {[%clk 0:02:42.7]} 6. Nb5 {[%clk 0:02:54.9]} 6... Na6 {[%clk 0:02:42.7]} 7.
Be2 {[%clk 0:02:54.6]} 7... O-O {[%clk 0:02:37.9]} 8. c4 {[%clk 0:02:38.3]} 8...
c5 {[%clk 0:02:32.2]} 9. dxc5 {[%clk 0:02:35.4]} 9... Qa5+ {[%clk 0:02:27.9]}
10. Qd2 {[%clk 0:02:24.4]} 10... Qxd2+ {[%clk 0:02:28.3]} 11. Kxd2 {[%clk
0:02:26.3]} 11... Ne4+ {[%clk 0:02:15.8]} 12. Ke1 {[%clk 0:02:26.4]} 12... dxc4
{[%clk 0:02:17]} 13. Bxc4 {[%clk 0:02:02.5]} 13... Bxb2 {[%clk 0:02:16.6]} 14.
Rb1 {[%clk 0:02:03.6]} 14... Bg7 {[%clk 0:02:17.6]} 15. Nf3 {[%clk 0:01:54]}
15... Nexc5 {[%clk 0:02:17.7]} 16. Ke2 {[%clk 0:01:52]} 16... Bf5 {[%clk
0:02:18.1]} 17. Rbd1 {[%clk 0:01:48.7]} 17... Nb4 {[%clk 0:02:00.8]} 18. Nfd4
{[%clk 0:01:36.7]} 18... Bd7 {[%clk 0:01:32]} 19. Nb3 {[%clk 0:01:28.1]} 19...
Be6 {[%clk 0:01:18.8]} 20. Bxe6 {[%clk 0:01:22.2]} 20... Nxe6 {[%clk 0:01:20.7]}
21. a3 {[%clk 0:01:12.2]} 21... Nc6 {[%clk 0:01:16.5]} 22. Rd7 {[%clk
0:01:12.1]} 22... b6 {[%clk 0:00:51.8]} 23. Rc1 {[%clk 0:01:07.7]} 23... Rfc8
{[%clk 0:00:49.6]} 24. Nc7 {[%clk 0:01:05.3]} 24... Nxc7 {[%clk 0:00:48.7]} 25.
Rxc6 {[%clk 0:01:01.3]} 25... Nb5 {[%clk 0:00:45.4]} 26. Rxc8+ {[%clk
0:00:50.8]} 26... Rxc8 {[%clk 0:00:47.3]} 27. Rxe7 {[%clk 0:00:51.7]} 27... Bf8
{[%clk 0:00:48.3]} 28. Rd7 {[%clk 0:00:51.4]} 28... Bxa3 {[%clk 0:00:47.2]} 29.
Bxh6 {[%clk 0:00:47.7]} 29... a5 {[%clk 0:00:33.5]} 30. e4 {[%clk 0:00:44.7]}
30... a4 {[%clk 0:00:29.7]} 31. Nd4 {[%clk 0:00:38]} 31... Nxd4+ {[%clk
0:00:25.8]} 32. Rxd4 {[%clk 0:00:39.9]} 32... b5 {[%clk 0:00:27.6]} 33. Bd2
{[%clk 0:00:38.3]} 33... Bc5 {[%clk 0:00:21.4]} 34. Rd5 {[%clk 0:00:38.7]} 34...
b4 {[%clk 0:00:22.2]} 35. Rd7 {[%clk 0:00:37.1]} 35... b3 {[%clk 0:00:21.3]} 36.
Rb7 {[%clk 0:00:30.4]} 36... Ra8 {[%clk 0:00:21.8]} 37. Bc3 {[%clk 0:00:28.6]}
37... Ra7 {[%clk 0:00:10.2]} 38. Rb8+ {[%clk 0:00:28.8]} 38... Bf8 {[%clk
0:00:10.4]} 39. Bb4 {[%clk 0:00:28.5]} 39... b2 {[%clk 0:00:05.6]} 40. Bxf8
{[%clk 0:00:28.7]} 40... b1=Q {[%clk 0:00:06.2]} 41. Rxb1 {[%clk 0:00:22]} 41...
Kxf8 {[%clk 0:00:08.1]} 42. Ra1 {[%clk 0:00:19.7]} 42... a3 {[%clk 0:00:09.6]}
43. Kd3 {[%clk 0:00:21]} 43... a2 {[%clk 0:00:10.8]} 44. Kc3 {[%clk 0:00:22.5]}
44... Ra4 {[%clk 0:00:07.5]} 45. f3 {[%clk 0:00:23]} 45... f5 {[%clk 0:00:09.2]}
46. exf5 {[%clk 0:00:22.8]} 46... gxf5 {[%clk 0:00:09.8]} 47. h5 {[%clk
0:00:23.9]} 47... Kg7 {[%clk 0:00:08.6]} 48. Kb3 {[%clk 0:00:25.1]} 48... Rh4
{[%clk 0:00:09.1]} 49. Rxa2 {[%clk 0:00:26.3]} 49... Rxh5 {[%clk 0:00:10.6]} 50.
Kc3 {[%clk 0:00:27.4]} 50... Kf6 {[%clk 0:00:10.9]} 51. Kd3 {[%clk 0:00:28.3]}
51... Kg5 {[%clk 0:00:12.4]} 52. Ke3 {[%clk 0:00:29.2]} 52... Rh1 {[%clk
0:00:11.9]} 53. Kf2 {[%clk 0:00:28.6]} 53... Rb1 {[%clk 0:00:12.6]} 54. Re2
{[%clk 0:00:28.2]} 54... Rb4 {[%clk 0:00:13.6]} 55. g3 {[%clk 0:00:27]} 1/2-1/2